Cogmind - Beta 15 @@@ ROGUE MODE // 2025.07.13 @ 09:47:10 Player: beans Result: Destroyed by Y-45 Defender with Heavy Assault Rifle Performance ------------- Evolutions (0) 0 Regions Visited (3) 600 Robots Destroyed (12) 60 Value Destroyed (396) 396 Prototype IDs (0) 0 Alien Tech Used (0) 0 Bonus (0) 0 TOTAL SCORE: 1056 Bonus ------- None Cogmind --------- Core Integrity 0/250 Matter 232/300 Energy 100/100 System Corruption 0% Temperature Cool (9) Movement Core (100) Ox1 Location -9/Recycling Parts ------- > --- POWER (1) -------- (None) > --- PROPULSION (2) --- (None) > --- UTILITY (2) ------ Machine Analyzer Makeshift Salvage Targeting Computer > --- WEAPON (2) ------- Light Assault Rifle Subdweller Machine Gun > --- INVENTORY (5) ---- Assault Rifle Battle Rifle Battle Rifle Peak State ------------ > --- POWER ------------ Subdweller Power Source > --- PROPULSION ------- Light Treads Light Treads > --- UTILITY ---------- Machine Analyzer Makeshift Salvage Targeting Computer > --- WEAPON ----------- Riot Gun Grenade Launcher > --- INVENTORY -------- Subdweller Laser Assault Rifle Light Assault Rifle Battle Rifle Subdweller Machine Gun [Rating: 15] Favorites ----------- Power Subdweller Power Source Engine Subdweller Power Source Propulsion Light Treads Treads Light Treads Utility Machine Analyzer Processor Machine Analyzer Weapon Battle Rifle Energy Gun Subdweller Laser Ballistic Gun Battle Rifle Launcher Grenade Launcher Build | -11 -10 -10 -9 ------- Run | Yrd Mat Sub Rec Slots Evolved . | . . . . Power . | . . . . Propulsion . | . . . . Utility . | . . . . Weapon . | . . . . Parts Attached 14 | 4 . 10 . Power 1 | . . 1 . Engine 1 | . . 1 . Core . | . . . . Reactor . | . . . . Propulsion 2 | 2 . . . Treads 2 | 2 . . . Leg . | . . . . Wheel . | . . . . Hover . | . . . . Flight . | . . . . Utility 2 | . . 2 . Device . | . . . . Storage . | . . . . Processor 2 | . . 2 . Hackware . | . . . . Protection . | . . . . Artifact . | . . . . Weapon 9 | 2 . 7 . Energy Gun 2 | . . 2 . Energy Cannon . | . . . . Ballistic Gun 6 | 2 . 4 . Ballistic Cannon . | . . . . Launcher 1 | . . 1 . Special Weapon . | . . . . Impact Weapon . | . . . . Slashing Weapon . | . . . . Piercing Weapon . | . . . . Special Melee Weapon . | . . . . Unidentified Prototypes . | . . . . Parts Lost 5 | . . 4 1 Power 1 | . . . 1 Propulsion 2 | . . 2 . Utility . | . . . . Weapon 2 | . . 2 . Highest Loss Streak 4 | . . 4 1 To Critical Strikes . | . . . . Average Backups 3 | . . 3 3 Power . | . . . . Propulsion . | . . . . Utility . | . . . . Weapon 3 | . . 3 3 Tool/Special . | . . . . Unused Backups . | . . . . Power . | . . . . Propulsion . | . . . . Utility . | . . . . Weapon . | . . . . Tool/Special . | . . . . Average Slot Usage (%) 77 | . 57 79 69 Engine 6 | . . 7 12 Treads 26 | . 28 27 . Processor 14 | . . 15 28 Energy Gun 3 | . . 3 . Ballistic Gun 20 | . 28 18 28 Launcher 4 | . . 5 . Peak Build Rating 15 | 4 4 15 12 Average Rating 9 | 2 4 9 11 On Entrance 5 | . 4 4 12 Naked Turns . | . . . . Heaviest Build 11 | 3 3 11 10 Greatest Support 40 | 40 40 40 3 Greatest Overweight (x) 3 | . . 3 3 Average Overweight (x) . | . . . 2 Largest Inventory Capacity 5 | 5 5 5 5 Average Capacity 5 | 5 5 5 5 Most Carried 5 | 2 1 5 3 Average Carried 3 | . . 3 3 Final Capacity 5 | 5 5 5 5 Final Carried 3 | . 1 3 3 Class Distribution -------------------- 100% | Mutant Dominant Class ---------------- Mutant | -10/Materials Mutant | -10/Subcaves Mutant | -9/Recycling Resources | -11 -10 -10 -9 ----------- Run | Yrd Mat Sub Rec Matter Collected 680 | 256 . 424 . Remotely . | . . . . Salvage Created 393 | 86 . 307 . Parts 15 | 2 . 13 . Haulers Intercepted . | . . . . Recyclers Shooed . | . . . . Parts Field Recycled . | . . . . Retrieved Matter . | . . . . Parts Self-Destructed 14 | . . 14 . Prevented . | . . . . Kills | -11 -10 -10 -9 ------- Run | Yrd Mat Sub Rec Combat Hostiles Destroyed 9 | . . 9 . Guns 5 | . . 5 . AOE 4 | . . 4 . Classes Destroyed 4 | 1 . 3 . Recycler 1 | 1 . . . Turret 2 | . . 2 . Swarmer 1 | . . 1 . Subdweller 8 | . . 8 . Best Kill Streak 2 | 1 . 2 . Combat Bots Only 1 | . . 1 . Max Kills in Single Turn 1 | 1 . 1 . Gunslinging . | . . . . Exploded 1 | . . 1 . Melee . | . . . . Uniques/NPCs Destroyed . | . . . . Combat | -11 -10 -10 -9 -------- Run | Yrd Mat Sub Rec Hostile Shots Fired 118 | . . 114 4 Missed 47 | . . 47 . Hits 71 | . . 67 4 Projectile 71 | . . 67 4 Critical Strikes 1 | . . 1 . Damage Taken 918 | . . 857 61 Core 263 | . . 247 16 Absorbed by Shields . | . . . . Core Remaining (%) 100 | 100 . . . Volleys Fired 92 | 4 . 88 . Largest 2 | 2 . 2 . Hottest 85 | 40 . 85 . Shots Fired 157 | 8 . 149 . Gun 140 | 8 . 132 . Cannon . | . . . . Launcher 17 | . . 17 . Special . | . . . . Kinetic 101 | 8 . 93 . Thermal 25 | . . 25 . Explosive 17 | . . 17 . Electromagnetic 14 | . . 14 . Robot Hit Streak 9 | 5 . 9 . Robot Miss Streak 4 | 1 . 4 . Penetration Max . | . . . . Secondary Targets . | . . . . Shots Hit Robots 65 | 6 . 59 . Core Hits 24 | 2 . 22 . Critical Kills . | . . . . Critical Parts Destroyed . | . . . . Critical Strikes . | . . . . Melee Attacks . | . . . . Impact . | . . . . Slashing . | . . . . Piercing . | . . . . Sneak Attacks . | . . . . Combat Hostiles . | . . . . Follow-up Attacks . | . . . . Damage Inflicted 1192 | 56 . 1136 . Guns 729 | 56 . 673 . Cannons . | . . . . Explosions 463 | . . 463 . Melee . | . . . . Ramming . | . . . . Kinetic 570 | 56 . 514 . Thermal 81 | . . 81 . Explosive 463 | . . 463 . Electromagnetic 78 | . . 78 . Impact . | . . . . Slashing . | . . . . Piercing . | . . . . Highest Corruption . | . . . . Average Corruption . | . . . . Corruption Purged . | . . . . Corruption Blocked . | . . . . Overload Shots . | . . . . Overflow Damage . | . . . . Projectiles . | . . . . Explosions . | . . . . Melee . | . . . . Knockbacks . | . . . . Impact . | . . . . Kinetic . | . . . . Secondary . | . . . . Self-Inflicted Damage 5 | . . 5 . Shots 2 | . . 2 . Rammed . | . . . . Targets Rammed . | . . . . Kicked . | . . . . Crushed . | . . . . Highest Temperature 19 | . . 19 . Average Temperature 6 | . . 6 . Received Heat Transfer 372 | . . 354 18 Siege Activations . | . . . . Martial Activations . | . . . . Shielding Activations . | . . . . Robots Disrupted . | . . . . Combat Hostiles . | . . . . Robots Corrupted . | . . . . Combat Hostiles . | . . . . Parts Fried . | . . . . Impact Corruptions . | . . . . Robots Melted . | . . . . Combat Hostiles . | . . . . Parts Melted . | . . . . Heat Transferred 100 | . . 100 . Parts Sabotaged . | . . . . Parts Stolen . | . . . . Parts Stripped . | . . . . Power Chain Reactions . | . . . . Alert | -11 -10 -10 -9 ------- Run | Yrd Mat Sub Rec Maximum Alert Level 1 | . . . 1 Low Security (%) 75 | 100 100 . . Level 1 24 | . . . 100 Level 2 . | . . . . Level 3 . | . . . . Level 4 . | . . . . Level 5 . | . . . . High Security . | . . . . Max Security . | . . . . Peak Influence 357 | 5 . . 357 Initial 357 | . . . 357 Average 81 | 1 . . 339 Influence Increases 800 | 5 . 795 . Destroy 0b10 Robot/C 60 | . . 60 . Destroy 0b10 Robot/NC 5 | 5 . . . Lose Combat Pursuer 735 | . . 735 . Influence Decreases 493 | 5 . 50 438 Entered New Map 388 | . . . 388 Time Decay 55 | 5 . 10 40 Lost Part 50 | . . 40 10 Squads Dispatched . | . . . . Investigation . | . . . . Extermination . | . . . . Reinforcement . | . . . . Assault . | . . . . Garrison . | . . . . Intercept . | . . . . Searches Triggered . | . . . . Construction Impeded . | . . . . Haulers Reinforced . | . . . . Active Scanning Responses . | . . . . Cargo Convoy Interrupts . | . . . . Stealth | -11 -10 -10 -9 --------- Run | Yrd Mat Sub Rec Distress Signals . | . . . . Communications Jammed . | . . . . Distress Signals . | . . . . Times Spotted 49 | . . 47 2 Peak Tracking Total 3 | . 1 3 2 Tactical Retreats 5 | . . 5 . Traps | -11 -10 -10 -9 ------- Run | Yrd Mat Sub Rec Traps Triggered . | . . . . Indirectly . | . . . . Trap Hack Attempts . | . . . . Triggered . | . . . . Disarmed . | . . . . Reprogrammed . | . . . . Reused . | . . . . Traps Extracted . | . . . . Installed . | . . . . Triggered . | . . . . Machines | -11 -10 -10 -9 ---------- Run | Yrd Mat Sub Rec Machines Disabled 2 | . . 2 . Max in Single Turn 1 | . . 1 . Machines Repaired . | . . . . Machines Dismantled . | . . . . Machines Sabotaged . | . . . . Overloaded Fab Kills . | . . . . Hacking | -11 -10 -10 -9 --------- Run | Yrd Mat Sub Rec Machines Accessed 1 | . . 1 . Terminals . | . . . . Fabricators . | . . . . Repair Stations . | . . . . Recycling Units . | . . . . Scanalyzers . | . . . . Garrison Access . | . . . . Total Hacks 3 | . . 3 . Successful 3 | . . 3 . Failed . | . . . . Catastrophic . | . . . . Database Lockouts . | . . . . Manual . | . . . . Terminals . | . . . . Fabricators . | . . . . Repair Stations . | . . . . Recycling Units . | . . . . Scanalyzers . | . . . . Garrison Access . | . . . . Terminal Hacks 3 | . . 3 . Record 3 | . . 3 . Fabricator Hacks . | . . . . Repair Station Hacks . | . . . . Recycling Unit Hacks . | . . . . Scanalyzer . | . . . . Garrison Access Hacks . | . . . . Unauthorized Hacks . | . . . . Terminals . | . . . . Fabricators . | . . . . Repair Stations . | . . . . Recycling Units . | . . . . Scanalyzers . | . . . . Garrison Access . | . . . . Data Cores Recovered . | . . . . Used . | . . . . Hacking Detections . | . . . . Full Trace Events . | . . . . Feedback Events . | . . . . Feedback Blocked . | . . . . Robot Schematics Acquired . | . . . . Robots Built . | . . . . Authchips . | . . . . Time . | . . . . Total Robot Build Rating . | . . . . Part Schematics Acquired . | . . . . Parts Built . | . . . . Authchips . | . . . . Time . | . . . . Total Part Build Rating . | . . . . Parts Repaired . | . . . . Time . | . . . . Parts Recycled . | . . . . Recycled Matter . | . . . . Retrieved Matter . | . . . . Retrieved Components . | . . . . Parts Scanalyzed . | . . . . Part Schematics Acquired . | . . . . Parts Damaged . | . . . . Bothacking | -11 -10 -10 -9 ------------ Run | Yrd Mat Sub Rec Used RIF Installer . | . . . . Robots Hacked . | . . . . Non-combat . | . . . . Combat . | . . . . Robot Hacks Applied . | . . . . Relay Couplers Released . | . . . . Fabnet Peak Effective % . | . . . . Robots Rewired . | . . . . Allies Hacked . | . . . . Hacks Repelled . | . . . . Allies | -11 -10 -10 -9 -------- Run | Yrd Mat Sub Rec Total Allies . | . . . . Largest Group . | . . . . Highest-Rated Group . | . . . . Highest-Rated Ally . | . . . . Total Orders . | . . . . Ally Attacks . | . . . . Total Damage . | . . . . Kills . | . . . . Allies Corrupted . | . . . . Allies Melted . | . . . . Intel | -11 -10 -10 -9 ------- Run | Yrd Mat Sub Rec Active Infowar (turns) 1771 | . . 1685 86 Machine Analysis 1771 | . . 1685 86 Robot Analysis Total . | . . . . Derelict Logs Recovered 2 | . . 2 . Drone Launches . | . . . . Drone Recoveries . | . . . . Exploration | -11 -10 -10 -9 ------------- Run | Yrd Mat Sub Rec Turns Passed 2389 | 56 216 2031 86 Spaces Moved 1201 | 45 62 1050 44 Core 85 | 31 . 10 44 Treads 1116 | 14 62 1040 . Legs . | . . . . Wheels . | . . . . Hover . | . . . . Flight . | . . . . Fastest Speed 50 | 50 160 100 100 Average Speed 158 | 84 160 160 195 Slowest Speed 200 | 160 160 200 200 Overloaded Moves . | . . . . Propulsion Burnouts . | . . . . Robots Hopped . | . . . . Potential Cave-ins . | . . . . Cave-ins Triggered . | . . . . Exploration Rate (%) 19 | 3 13 49 14 Regions Visited 3 Branch Regions 2 Pre-discovered Areas . | . . . . Known Exits Taken . | . . . . Unknown Exits Taken 3 | 1 1 1 . Scrap Searched 2 | . . 2 . Spaces Dug . | . . . . Terrain Destroyed 54 | . . 54 . Melee . | . . . . Projectile . | . . . . AOE 54 | . . 54 . Terrain Rammed . | . . . . Walls Destroyed . | . . . . Machines Disabled . | . . . . Actions | -11 -10 -10 -9 --------- Run | Yrd Mat Sub Rec Total 1535 | 56 179 1256 44 Wait 216 | . 117 99 . Move 1198 | 44 61 1049 44 Hop . | . . . . Pick Up 11 | 4 1 6 . Fast Attach 2 | . . 2 . Attach 7 | 4 . 3 . Detach . | . . . . Swap 7 | . . 7 . Drop 2 | . . 2 . Fire 92 | 4 . 88 . Melee . | . . . . Ram . | . . . . Kick . | . . . . Crush . | . . . . Escape Stasis . | . . . . Rewire . | . . . . Trap . | . . . . Miscellaneous . | . . . . Route ------- -11/Scrapyard -10/Materials -10/Subcaves (discovered 2 exits: [*Mat] / [*Rec]) -9/Recycling History --------- Turn | Location | Event 4 | -11/Scrapyard | Discovered new exit (range 14) 57 | -11/Scrapyard | Entered Materials 259 | -10/Materials | Discovered new exit (range 5) 273 | -10/Materials | Entered Subcaves 274 | -10/Subcaves | Approached by a straggling Scientist 283 | -10/Subcaves | Learned Materials stockpile data 305 | -10/Subcaves | Build established: Mutant 405 | -10/Subcaves | A swath of the cavern ceiling suddenly collapsed 488 | -10/Subcaves | Visited Clippyterm 492 | -10/Subcaves | Learned Research machine intel 915 | -10/Subcaves | Discovered new exit (range 12) 987 | -10/Subcaves | Learned 2 Materials zone layouts 1269 | -10/Subcaves | Core integrity fell below 50% 2219 | -10/Subcaves | Discovered new exit (range 10) 2245 | -10/Subcaves | Core integrity fell below 20% 2291 | -10/Subcaves | Lost 4 parts (2n2w) 2304 | -10/Subcaves | Entered Recycling 2390 | -9/Recycling | Destroyed by Y-45 Defender with Heavy Assault Rifle Last Messages --------------- Acquired 34 matter. EXIT=FOUND S-10 Pest destroyed. Acquired 13 matter. Grenade Launcher destroyed. Flight Unit fries itself beyond repair. Autobeam Turret destroyed. Machine disabled. Lgt. Treads destroyed. Machine disabled. Lgt. Treads destroyed. Riot Gun destroyed. Destroyed Autobeam. Autobeam Turret destroyed. Acquired 13 matter. Acquired 30 matter. LOCATION=UNKNOWN GOAL=ESCAPE Y-45 Defender springs to life. Sub. Power Source destroyed. Map ----- +----------------------------------------------------+ | ?????????????????????????????????????????????????? | | ?????????????????????????????????????????????????? | | ?????????????????????????????????????????????????? | | ?????????????????????????????????????????????????? | | ?????????????????????????????????????????????????? | | ?????????????????????????????????????????????????? | | ?????????????????????????????????????????????????? | | ?????????????????????????????????????????????????? | | ??????????????????????? ???????????????????????? | | ??????????????????????# ???????????????????????? | | ??????????????????????# ???????????????????????? | | ??????????????????????# ???????????????????????? | | ??????????????????????# #??????????????????????? | | ??????????????????????# #??????????????????????? | | ??????????????????????# #??????????????????????? | | ??????????????????????# #??????????????????????? | | ??????????????????????+ #??????????????????????? | | ??????????????????????# #??????????????????????? | | ??????????????????????# #??????????????????????? | | ??????????????????????+ #??????????????????????? | | ??????????????????????# #??????????????????????? | | ??????????????????????# #??????????????????????? | | ?????????????????????## #??????????????????????? | | ???????????????#?????#Y #??????????????????????? | | ????????######## ###### #??????????????????????? | | ??????? Y @#??????????????????????? | | ??????? +??????????????????????? | | ??????? #??????????????????????? | | ?????????#]]]## #####+#####??????????????????????? | | ?????????????????# #??????????????????????? | | ??????????????#??# #??????????????????????? | | ??????????????# ?# #??????????????????????? | | ??????????????# ?# #??????????????????????? | | ?????????????? ?+ #??????????????????????? | | ??????????????# ?# #??????????????????????? | | ??????????????# ?# #??????????????????????? | | ??????????????# ?# ##?????????????????????? | | ??????????????# ?# #?????????????????????? | | ??????????????# ##+#########?????????????????????? | | ??????????????# #?????????????????????????????? | | ??????????????# #?????????????????????????????? | | ??????????????# #?????????????????????????????? | | ??????????????# #?????????????????????????????? | | ??????????????# #?????????????????????????????? | | ??????????????# #???#######???????????????????? | | ?############## ##### #???????????????????? | | #???????????????????? | | #???????????????????? | | #???????????????????? | | ?####/######### ######## #???????????????????? | +----------------------------------------------------+ Best States ------------- Heat Dissipation 25 Energy Generation 15 Energy Capacity 200 Matter Stores 300 Matter Capacity 300 Sight Range 16 Terrain Scan Density 10 Evasion (%) 50 Recoil Reduction 2 Salvage Targeting 4 Item Schematics ----------------- None Robot Schematics ------------------ None Fabricated ------------ Nothing Repaired ---------- Nothing Alien Tech Used ----------------- None Achievements -------------- None Challenges ------------ None Game ------ Seed ClaymoresAuthchipDetonator Manual? 0 Play Time 00:10:13 Cumulative 47.2 hours Start 2025.07.13 @ 09:36:25 End 2025.07.13 @ 09:47:10 Sessions 1 Manual Loads 0 Difficulty Rogue Special Mode None Game No. 221 Rogue 221 Adventurer 0 Explorer 0 Win Type - Total 0 Types 0/0/0/0/0/0/0/0/0/0 Lore% 32 Gallery% 26 Achievement% 23 Wizard Run 0 Options --------- Layout 2 ASCII 0 Keyboard 0 Movement Mouse Keybinds 0 Fullscreen 1 Font 24/Smallcaps Map View 50x44 Zoom Use 0% Tactical HUD 0 Map Filters NONE Filters NONE Steam 1 RUN: 91226500-820e-41ca-b0ca-26a8b5e22b9f